bitfinex/quotes_SOLUSD_20250414
["timestamp","ask_amount","ask_price","bid_price","bid_amount"]
[1744601003220,0.42648471,132.57,132.54,7.7534]
[1744601003396,18.62467025,132.56,132.53,0.063]
[1744601003794,18.64964886,132.54,132.53,0.063]
[1744601003996,37.70080382,132.54,132.53,0.063]
[1744601004217,19.07613357,132.54,132.53,0.063]
[1744601004423,18.90899339,132.56,132.53,0.063]
[1744601004611,0.14216157,132.55,132.53,0.063]
[1744601006198,0.28432314,132.58,132.53,18.68767025]
[1744601006424,0.14216157,132.58,132.53,18.68767025]
[1744601006616,99.5253,132.67,132.57,18.62467025]
[1744601006926,0.14216157,132.62,132.58,18.62467025]
[1744601007298,18.64964886,132.63,132.59,18.62467025]
[1744601007498,0.42648471,132.63,132.59,18.62467025]
[1744601007719,0.42648471,132.63,132.58,18.62467025]
[1744601008202,6.31612314,132.63,132.58,18.62467025]
[1744601008431,0.42648471,132.61,132.56,18.62467025]
[1744601008621,0.42648471,132.59,132.54,33.12417025]
[1744601009332,0.42648471,132.59,132.55,18.62467025]
[1744601010128,0.42648471,132.59,132.55,24.65977025]
[1744601010502,0.14216157,132.62,132.58,18.62467025]
[1744601010906,0.42648471,132.62,132.58,18.62467025]
[1744601011112,16.6554,132.67,132.58,18.62467025]
[1744601011113,0.03,132.67,132.61,18.62467025]
[1744601011425,0.03,132.67,132.63,18.62467025]
[1744601011626,25.13623357,132.67,132.61,18.62467025]
[1744601011821,18.82181043,132.67,132.61,18.62467025]
[1744601012022,18.82181043,132.67,132.6,1.6465]
[1744601012023,0.28432314,132.66,132.62,18.62467025]
[1744601012225,18.82181043,132.67,132.63,6.0318]
[1744601012425,0.17216157,132.67,132.63,6.0318]
[1744601012730,0.17216157,132.67,132.63,24.65647025]
[1744601013327,0.45648471,132.67,132.63,24.65647025]
[1744601013717,0.17216157,132.67,132.63,24.65647025]
[1744601014040,0.45648471,132.67,132.62,6.0321]
[1744601014227,19.08115496,132.67,132.62,6.0321]
[1744601015235,19.10613357,132.67,132.62,6.0321]
[1744601015734,0.42648471,132.65,132.61,24.65727025]
[1744601015927,0.42648471,132.65,132.61,6.0326]
[1744601016125,18.64964886,132.66,132.61,24.65727025]
[1744601016313,0.28432314,132.66,132.63,6.0318]
[1744601016617,0.28432314,132.66,132.63,24.65647025]
[1744601016935,0.03,132.67,132.63,24.65647025]
[1744601018330,0.31432314,132.67,132.63,24.65647025]
[1744601018710,0.31432314,132.67,132.6,1.6465]
[1744601018926,0.14216157,132.66,132.61,18.62467025]
[1744601019625,18.64964886,132.64,132.6,18.62467025]
[1744601019913,18.64964886,132.64,132.59,8.06]
[1744601020113,18.62467025,132.64,132.59,8.06]
[1744601020325,18.64964886,132.63,132.59,32.71817025]
[1744601020710,18.64964886,132.63,132.6,18.62467025]
[1744601021022,25.10703357,132.65,132.6,18.62467025]
[1744601021540,0.42648471,132.65,132.61,18.62467025]
[1744601021861,18.963972,132.67,132.62,18.62467025]
[1744601022021,18.963972,132.67,132.63,24.65607025]
[1744601022022,18.82181043,132.67,132.63,24.65607025]
[1744601022538,18.82181043,132.67,132.63,6.0314]
[1744601025142,0.28432314,132.66,132.6,6.0331]
[1744601025311,0.28432314,132.66,132.61,18.62467025]
[1744601025513,0.14216157,132.65,132.6,24.65777025]
[1744601025739,0.28432314,132.64,132.6,6.0331]
[1744601025920,0.28432314,132.62,132.57,6.0344]
[1744601026128,37.27431911,132.61,132.57,6.0344]
[1744601026870,0.42648471,132.6,132.56,6.0348]
[1744601027148,0.42648471,132.6,132.56,18.62467025]
[1744601028838,0.42648471,132.6,132.56,24.65947025]
[1744601029739,24.68244886,132.61,132.56,24.65947025]
[1744601030047,6.0601,132.67,132.6,18.62467025]
[1744601030247,0.42648471,132.66,132.62,18.62467025]
[1744601031342,6.45688471,132.66,132.61,18.62467025]
[1744601031644,18.64964886,132.65,132.61,18.62467025]
[1744601031820,0.42648471,132.64,132.6,18.62467025]
[1744601032143,19.05115496,132.64,132.59,8.06]
[1744601032647,0.42648471,132.64,132.59,32.71817025]
[1744601033018,0.42648471,132.64,132.6,18.62467025]
[1744601033230,18.64964886,132.65,132.6,18.62467025]
[1744601033433,18.82181043,132.67,132.63,18.62467025]
[1744601033659,0.45648471,132.67,132.63,18.62467025]
[1744601034039,0.45648471,132.67,132.62,18.62467025]
[1744601034856,0.31432314,132.67,132.62,18.62467025]
[1744601035763,0.03,132.67,132.63,18.62467025]
[1744601036143,0.03,132.67,132.64,18.62467025]
[1744601037365,0.03,132.67,132.63,18.62467025]
[1744601037756,19.08115496,132.67,132.61,101.22467025]
[1744601038059,37.70080382,132.65,132.6,6.0329]
[1744601038230,19.07613357,132.65,132.6,24.65757025]
[1744601039956,43.73180382,132.65,132.59,14.0934]
[1744601040137,19.07613357,132.63,132.59,8.06]
[1744601040341,19.07613357,132.63,132.58,24.65857025]
[1744601040342,37.70080382,132.6,132.55,6.0351]
[1744601040538,18.62467025,132.59,132.54,6.0357]
[1744601041238,24.65827025,132.59,132.54,6.0357]
[1744601041561,18.62467025,132.58,132.54,6.0357]
[1744601041738,37.70080382,132.57,132.53,0.063]
[1744601043133,18.62467025,132.56,132.53,0.063]
[1744601043844,24.65977025,132.56,132.53,0.063]
[1744601046130,18.62467025,132.56,132.53,0.063]
[1744601046459,24.65967025,132.56,132.53,0.063]
[1744601046638,18.62467025,132.56,132.53,0.063]
[1744601046838,43.73540382,132.57,132.53,0.063]
[1744601048954,18.79181043,132.6,132.55,18.62467025]
[1744601049461,37.41648068,132.6,132.55,18.62467025]
[1744601049759,0.28432314,132.56,132.53,0.063]
[1744601049956,0.42648471,132.56,132.53,0.063]
[1744601050151,18.90899339,132.58,132.53,0.063]
[1744601050357,0.14216157,132.57,132.53,18.68767025]
[1744601050760,18.79181043,132.57,132.53,18.68767025]
[1744601051060,18.79181043,132.57,132.53,0.063]
[1744601051566,0.28432314,132.56,132.53,0.063]
[1744601051944,18.79181043,132.57,132.53,18.68767025]
[1744601052159,18.79181043,132.57,132.53,24.72377025]
[1744601053661,18.79181043,132.57,132.53,0.063]
[1744601054270,0.28432314,132.56,132.53,0.063]
[1744601055381,0.42648471,132.54,132.53,0.063]
[1744601057469,25.08705496,132.54,132.53,0.063]
[1744601059858,43.73670382,132.54,132.53,0.063]
[1744601063256,19.07613357,132.52,132.51,0.063]
[1744601063566,26.28432314,132.5,132.49,0.063]
[1744601063746,63.70080382,132.5,132.49,0.063]
[1744601064668,69.73850382,132.5,132.49,0.063]
[1744601073162,62.81429612,132.5,132.49,0.063]
[1744601080071,18.79181043,132.5,132.49,0.063]
[1744601080476,30.49227298,132.5,132.49,0.063]
[1744601080673,30.77659612,132.5,132.49,0.063]
[1744601080966,30.49227298,132.5,132.49,0.063]
[1744601081170,18.79181043,132.5,132.49,0.063]
[1744601081686,11.70046255,132.52,132.49,0.063]
[1744601081890,18.79181043,132.51,132.49,0.063]
[1744601083277,90.96,132.55,132.49,0.063]
[1744601083483,0.03,132.57,132.51,11.70046255]
[1744601083674,0.03,132.57,132.53,11.70046255]
[1744601083993,0.14216157,132.56,132.52,19.37166255]
[1744601084176,0.42648471,132.56,132.52,7.6712]
[1744601084387,18.64964886,132.53,132.49,0.063]
[1744601085193,0.28432314,132.53,132.49,11.76346255]
[1744601085369,0.28432314,132.53,132.49,17.80156255]
[1744601085872,18.933972,132.53,132.49,6.1011]
[1744601086678,0.14216157,132.52,132.49,0.063]
[1744601086990,0.14216157,132.52,132.49,6.1011]
[1744601087486,0.14216157,132.52,132.49,0.063]
[1744601089193,18.933972,132.51,132.49,0.063]
[1744601089576,30.63443455,132.51,132.49,0.063]
[1744601090496,0.14216157,132.5,132.49,0.063]
[1744601090695,30.77659612,132.5,132.49,0.063]
[1744601091202,25.11473357,132.48,132.47,0.063]
[1744601091396,19.07613357,132.47,132.46,0.063]
[1744601091580,30.77659612,132.47,132.46,0.063]
[1744601092801,36.81569612,132.47,132.46,0.063]
[1744601095101,0.14216157,132.46,132.45,0.063]
[1744601095306,30.77659612,132.46,132.45,0.063]
[1744601096385,18.79181043,132.44,132.41,0.063]
[1744601096586,62.81699612,132.44,132.41,0.063]
[1744601098302,18.79181043,132.44,132.41,0.063]
[1744601098502,0.14216157,132.46,132.42,13.32846255]
[1744601098681,19.07613357,132.46,132.42,19.36956255]
[1744601098997,18.79181043,132.46,132.42,19.36956255]
[1744601099303,0.14216157,132.44,132.42,1.628]
[1744601099477,12.12694726,132.44,132.41,0.063]
[1744601099677,30.77659612,132.44,132.41,0.063]
[1744601100400,30.63443455,132.44,132.41,0.063]
[1744601100706,30.77659612,132.44,132.41,0.063]
[1744601100998,44.83699612,132.44,132.41,0.063]
[1744601101804,45.07613357,132.42,132.41,0.063]
[1744601102004,30.77659612,132.4,132.39,0.063]
[1744601102390,42.47705867,132.4,132.39,0.063]
[1744601102706,48.51925867,132.4,132.39,0.063]
[1744601103401,43.87187815,132.4,132.39,0.063]
[1744601106497,25.11833357,132.4,132.39,0.063]
[1744601106702,43.87187815,132.4,132.39,0.063]
[1744601107207,37.54535501,132.4,132.39,0.063]
[1744601107597,37.82967815,132.4,132.39,0.063]
[1744601107805,15.0974,132.48,132.39,0.063]
[1744601107995,0.14216157,132.46,132.4,1.6237]
[1744601108319,18.75354458,132.44,132.4,1.6237]
[1744601108512,18.75354458,132.44,132.4,7.6659]
[1744601108702,18.75354458,132.41,132.39,0.063]
[1744601109012,37.82967815,132.4,132.39,0.063]
[1744601109711,19.07613357,132.4,132.39,0.063]
[1744601109891,18.75354458,132.41,132.39,0.063]
[1744601110203,37.54535501,132.43,132.39,6.1056]
[1744601110395,18.79181043,132.43,132.39,6.1056]
[1744601111808,37.54535501,132.43,132.39,6.1056]
[1744601114086,37.54535501,132.43,132.39,0.063]
[1744601118514,19.03786772,132.42,132.39,0.063]
[1744601119910,0.28432314,132.4,132.39,0.063]
[1744601120115,37.82967815,132.4,132.39,0.063]
[1744601120496,0.28432314,132.42,132.39,0.063]
[1744601120798,19.18002929,132.4,132.39,0.063]
[1744601121003,37.82967815,132.4,132.39,0.063]
[1744601122516,26.0,132.38,132.37,0.063]
[1744601122817,0.28432314,132.34,132.28,6.0474]
[1744601123013,37.82967815,132.34,132.28,6.0474]
[1744601123622,37.82967815,132.34,132.27,14.0375]
[1744601124112,19.07613357,132.34,132.29,18.75354458]
[1744601124521,19.07613357,132.34,132.3,6.0467]
[1744601125417,36.84666715,132.34,132.29,6.0472]
[1744601125618,30.80166715,132.34,132.29,6.0472]
[1744601125822,30.80166715,132.34,132.29,17.77273358]
[1744601126205,36.84666715,132.34,132.28,6.0476]
[1744601126406,36.84666715,132.34,132.29,6.0472]
[1744601126606,30.80166715,132.34,132.29,6.0472]
[1744601127024,30.65950558,132.35,132.3,11.72553358]
[1744601127528,30.65950558,132.35,132.29,17.77273358]
[1744601128002,11.86769515,132.37,132.32,11.72553358]
[1744601128202,18.933972,132.37,132.34,1.6665]
[1744601128824,18.933972,132.37,132.34,7.7114]
[1744601129026,18.79181043,132.37,132.34,7.7114]
[1744601130606,18.79181043,132.37,132.34,1.6665]
[1744601130820,18.05305672,132.38,132.34,1.6665]
[1744601131006,12.00985672,132.38,132.34,7.7115]
[1744601131207,30.65950558,132.35,132.33,0.063]
[1744601134024,30.80166715,132.34,132.33,0.063]
[1744601134210,11.72553358,132.35,132.33,0.063]
[1744601134416,30.80166715,132.35,132.33,0.063]
[1744601134717,19.07613357,132.35,132.33,0.063]
[1744601134926,0.42648471,132.35,132.33,0.063]
[1744601139044,26.0,132.39,132.33,0.063]
[1744601139217,37.86769515,132.38,132.33,0.063]
[1744601139421,18.64964886,132.37,132.33,0.063]
[1744601139726,11.72553358,132.38,132.33,11.78853358]
[1744601139927,11.72553358,132.39,132.34,6.2419]
[1744601140122,0.03,132.43,132.37,11.72553358]
[1744601140421,11.75553358,132.43,132.38,1.5927]
[1744601140627,11.72553358,132.42,132.38,1.5927]
[1744601140825,18.82181043,132.43,132.38,1.5927]
[1744601141023,30.54734401,132.43,132.39,6.0427]
[1744601141814,0.03,132.43,132.39,6.0427]
[1744601142322,0.03,132.43,132.39,17.76823358]
[1744601142934,0.03,132.43,132.39,6.0427]
[1744601143739,0.03,132.43,132.39,17.76823358]
[1744601144041,0.03,132.43,132.39,32.87503358]
[1744601149619,0.03,132.43,132.39,17.76823358]
[1744601151549,30.33166715,132.45,132.39,17.76823358]
[1744601155455,11.72553358,132.45,132.4,18.05413358]
[1744601155642,6.0682,132.49,132.4,6.3286]
[1744601155828,11.72553358,132.47,132.41,11.72553358]
[1744601156234,11.72553358,132.46,132.41,11.72553358]
[1744601157358,11.72553358,132.42,132.38,1.5927]
[1744601157561,12.15201829,132.45,132.39,11.72553358]
[1744601157861,30.80166715,132.45,132.39,11.72553358]
[1744601158055,19.72553358,132.46,132.4,11.72553358]
[1744601158256,11.72553358,132.47,132.42,11.72553358]
[1744601158453,0.03,132.49,132.44,11.72553358]
[1744601158756,0.31432314,132.49,132.44,19.58663358]
[1744601159558,0.31432314,132.49,132.45,6.04]
[1744601160558,12.03985672,132.49,132.45,6.04]
[1744601160851,18.07805672,132.49,132.44,13.9013]
[1744601161231,18.79181043,132.46,132.41,11.72553358]
[1744601161537,11.72553358,132.42,132.37,1.5325]
[1744601161739,11.72553358,132.41,132.37,1.5325]
[1744601161942,12.15201829,132.4,132.37,1.5325]
[1744601162338,11.72553358,132.4,132.37,1.5325]
[1744601162656,11.72553358,132.41,132.37,1.5325]
[1744601162857,11.72553358,132.4,132.37,1.5325]
[1744601163156,11.72553358,132.39,132.36,6.3286]
[1744601163457,11.72553358,132.39,132.34,7.5773]
[1744601163859,18.79181043,132.4,132.34,19.30283358]
[1744601164051,30.51734401,132.4,132.34,19.30283358]
[1744601164643,6.32632314,132.41,132.35,11.72553358]
[1744601164644,11.72553358,132.41,132.35,11.72553358]
[1744601164849,11.72553358,132.41,132.36,11.72553358]
[1744601165155,36.84286715,132.43,132.37,11.72553358]
[1744601165664,36.84286715,132.43,132.38,6.0432]
[1744601165962,11.72553358,132.44,132.39,11.72553358]
[1744601166154,11.72553358,132.45,132.39,17.78793358]
[1744601166561,30.51734401,132.46,132.41,11.72553358]
[1744601166937,30.51734401,132.46,132.4,1.5928]
[1744601167142,30.51734401,132.46,132.4,13.31833358]
[1744601168157,11.72553358,132.47,132.42,11.72553358]
[1744601168357,30.37518244,132.48,132.42,11.72553358]
[1744601168658,11.86769515,132.48,132.42,11.72553358]
[1744601168866,30.51734401,132.48,132.42,11.72553358]
[1744601169464,11.72553358,132.47,132.41,17.76733358]
[1744601169666,11.72553358,132.45,132.4,19.36043358]
[1744601170450,11.72553358,132.45,132.4,7.6349]
[1744601170656,11.72553358,132.44,132.4,1.5928]
[1744601174064,30.80166715,132.42,132.37,13.31833358]
[1744601174267,11.72553358,132.41,132.37,1.5928]
[1744601175367,17.76743358,132.41,132.37,1.5928]
[1744601178362,11.72553358,132.4,132.37,1.5928]
[1744601178554,11.72553358,132.4,132.35,6.0624]
[1744601178555,30.80166715,132.39,132.35,6.0624]
[1744601179564,36.84356715,132.41,132.35,23.83243358]
[1744601179869,18.05175672,132.41,132.35,23.83243358]
[1744601182268,11.86769515,132.4,132.35,12.1069]
[1744601184672,17.91019515,132.4,132.35,12.1069]
[1744601185862,6.18276157,132.44,132.38,11.72553358]
[1744601186065,0.14216157,132.44,132.39,11.72553358]
[1744601186259,36.41538244,132.45,132.39,11.72553358]
[1744601186467,36.41538244,132.45,132.4,11.72553358]
[1744601186666,12.15201829,132.44,132.38,11.72553358]
[1744601187063,30.37518244,132.43,132.37,11.72553358]
[1744601187576,36.41618244,132.43,132.38,6.0432]
[1744601188380,30.37518244,132.43,132.38,6.0432]
[1744601188880,18.64964886,132.43,132.38,17.76873358]
[1744601191082,30.37518244,132.43,132.38,17.76873358]
[1744601191378,0.42648471,132.42,132.37,11.72553358]
[1744601191570,18.19451829,132.4,132.35,12.1069]
[1744601191769,11.72553358,132.39,132.35,12.1069]
[1744601193478,18.19451829,132.4,132.35,12.1069]
[1744601193678,18.19451829,132.4,132.35,23.83243358]
[1744601193872,11.72553358,132.39,132.35,6.0624]
[1744601194073,11.72553358,132.39,132.34,1.5928]
[1744601194277,11.72553358,132.39,132.34,7.6378]
[1744601194984,17.76833358,132.39,132.34,7.6378]
[1744601195168,19.07613357,132.38,132.34,1.5928]
[1744601195372,11.72553358,132.37,132.33,0.063]
[1744601196266,17.76933358,132.37,132.33,0.063]
[1744601197557,11.72553358,132.37,132.33,0.063]
[1744601197776,11.72553358,132.39,132.34,11.72553358]
[1744601197975,11.72553358,132.39,132.33,11.78853358]
[1744601198178,11.72553358,132.34,132.33,0.063]
[1744601200288,17.77033358,132.35,132.33,0.063]
[1744601200585,12.15201829,132.34,132.33,0.063]
[1744601200786,12.00985672,132.34,132.33,0.063]
[1744601202362,17.77033358,132.35,132.33,0.063]
[1744601203171,12.00985672,132.34,132.33,0.063]
[1744601203377,30.80166715,132.34,132.33,0.063]
[1744601203569,12.00985672,132.34,132.33,0.063]
[1744601204591,11.72553358,132.34,132.33,0.063]
[1744601205495,17.77033358,132.35,132.33,0.063]
[1744601207574,15.833,132.38,132.33,0.063]
[1744601207778,94.62553358,132.39,132.34,11.72553358]
[1744601208094,12.00985672,132.37,132.33,1.5851]
[1744601208286,12.00985672,132.35,132.33,0.063]
[1744601208491,12.00985672,132.34,132.33,0.063]
[1744601209197,18.05405672,132.36,132.33,0.063]
[1744601211809,12.00985672,132.34,132.33,0.063]
[1744601212480,0.28432314,132.34,132.33,0.063]
[1744601212723,0.28432314,132.35,132.33,0.063]
[1744601213014,94.62553358,132.39,132.33,11.78853358]
[1744601213511,6.32772314,132.38,132.33,17.83383358]
[1744601213695,6.0434,132.38,132.33,17.83383358]
[1744601214309,94.62553358,132.39,132.33,17.83383358]
[1744601214310,82.9,132.39,132.34,11.72553358]
[1744601214606,82.9,132.39,132.34,17.86133358]
[1744601215608,82.9,132.39,132.35,6.0445]
[1744601215787,94.62553358,132.39,132.35,6.0445]
[1744601217104,12.00985672,132.38,132.33,1.6568]
[1744601217285,12.00985672,132.38,132.33,13.38233358]
[1744601218403,12.00985672,132.38,132.33,19.42763358]
[1744601218995,18.05305672,132.38,132.33,19.42763358]
[1744601219200,18.05305672,132.38,132.33,7.7021]
[1744601219381,18.05305672,132.38,132.33,1.6568]
[1744601219585,12.00985672,132.36,132.33,0.063]
[1744601220001,11.72553358,132.37,132.33,0.063]
[1744601220310,11.72553358,132.38,132.33,17.83383358]
[1744601220510,0.28432314,132.38,132.33,17.83383358]
[1744601220689,12.00985672,132.38,132.33,17.83383358]
[1744601221205,0.28432314,132.38,132.33,17.83383358]
[1744601222611,12.00985672,132.38,132.33,17.83383358]
[1744601223210,7.78424119,132.38,132.33,13.60821805]
[1744601223710,0.28432314,132.38,132.33,13.60821805]
[1744601224309,7.78424119,132.38,132.33,13.60821805]
[1744601225512,13.82744119,132.38,132.33,13.60821805]
[1744601225815,0.28432314,132.38,132.33,13.60821805]
[1744601226114,82.9,132.39,132.36,7.49991805]
[1744601226298,82.9,132.39,132.37,7.49991805]
[1744601226604,15.24326157,132.44,132.38,7.49991805]
[1744601226605,13.68257962,132.44,132.38,7.49991805]
[1744601226997,6.32522314,132.43,132.38,13.54281805]
[1744601227191,0.28432314,132.43,132.38,13.54281805]
[1744601227509,7.96,132.47,132.38,13.54281805]
[1744601227510,11.19747745,132.49,132.42,7.49991805]
[1744601227805,11.19747745,132.49,132.43,6.4575]
[1744601227985,11.19747745,132.49,132.44,7.49991805]
[1744601228607,11.19747745,132.49,132.45,7.49991805]
[1744601228904,19.10613357,132.49,132.43,6.4575]
[1744601229091,32.50209005,132.49,132.43,19.99791805]
[1744601229290,30.66375759,132.49,132.44,11.69978559]
[1744601229503,0.14216157,132.48,132.44,11.69978559]
[1744601229984,0.14216157,132.48,132.43,24.19778559]
[1744601230391,0.14216157,132.47,132.43,6.4575]
[1744601230602,0.14216157,132.47,132.43,12.4984]
[1744601231791,11.84194716,132.48,132.43,24.19818559]
[1744601231998,11.84194716,132.48,132.44,11.69978559]
[1744601231999,0.28432314,132.48,132.44,11.69978559]
[1744601233397,0.28432314,132.48,132.43,6.4575]
[1744601233620,0.28432314,132.46,132.42,6.0413]
[1744601233797,11.98410873,132.46,132.41,17.74138559]
[1744601233998,0.28432314,132.46,132.41,17.74138559]
[1744601238429,11.69978559,132.48,132.43,11.69978559]
[1744601239825,11.69978559,132.48,132.44,6.0404]
[1744601240199,11.69978559,132.48,132.45,11.69978559]
[1744601240200,0.28432314,132.48,132.45,11.69978559]
[1744601240619,0.28432314,132.48,132.44,17.74018559]
[1744601241004,0.14216157,132.48,132.44,17.74018559]
[1744601241207,0.31432314,132.49,132.45,11.69978559]
[1744601242014,0.03,132.49,132.48,11.69978559]
[1744601247223,0.03,132.49,132.46,100.56858559]
[1744601247421,0.03,132.49,132.46,106.60788559]
[1744601247625,0.03,132.49,132.48,11.69978559]
[1744601248506,0.03,132.49,132.48,17.73838559]
[1744601249005,0.03,132.49,132.48,101.90698559]
[1744601249205,0.03,132.5,132.48,31.00677118]
[1744601249413,0.03,132.5,132.49,11.69978559]
[1744601249612,0.03,132.5,132.49,19.63978559]
[1744601250814,0.03,132.5,132.49,25.67788559]
[1744601255814,0.03,132.5,132.49,13.9781]
[1744601256120,0.03,132.5,132.49,25.67788559]
[1744601256423,0.03,132.5,132.49,17.73788559]
[1744601269156,0.03,132.5,132.49,13.51814363]
[1744601271163,0.03,132.5,132.48,88.6384]
[1744601271548,0.03,132.5,132.48,96.11844363]
[1744601271732,0.03,132.5,132.49,7.48004363]
[1744601273653,0.03,132.5,132.49,13.51814363]
[1744601274246,0.03,132.5,132.49,21.45814363]
[1744601279060,0.03,132.5,132.49,6.0381]
[1744601279356,0.03,132.5,132.49,13.51814363]
[1744601280259,0.03,132.5,132.49,6.0381]
[1744601280459,0.03,132.5,132.49,13.51814363]
[1744601280861,0.03,132.5,132.48,6.0384]
[1744601281160,0.03,132.5,132.48,13.51844363]
[1744601283870,0.03,132.5,132.49,13.51814363]
[1744601289457,0.03,132.51,132.49,13.51814363]
[1744601289772,0.03,132.51,132.5,7.48004363]
[1744601290582,0.03,132.51,132.49,6.0381]
[1744601290583,0.03,132.51,132.49,7.48004363]
[1744601290857,0.03,132.51,132.48,13.51834363]
[1744601291252,0.03,132.51,132.49,7.48004363]
[1744601291873,7.48004363,132.5,132.46,82.6]
[1744601292449,7.79436677,132.51,132.46,82.6]
[1744601292881,7.79436677,132.51,132.46,96.11954363]
[1744601293175,0.03,132.51,132.5,7.48004363]
[1744601293958,0.03,132.51,132.5,13.51774363]
[1744601294270,0.0001,132.51,132.5,13.51774363]
[1744601294471,0.03,132.55,132.5,55.32385406]
[1744601294772,0.03,132.55,132.54,7.48004363]
[1744601296271,0.03,132.55,132.54,13.51594363]
[1744601297255,0.03,132.55,132.54,17.71271147]
[1744601297566,0.28432314,132.54,132.5,13.9577]
[1744601297868,17.97761147,132.51,132.43,0.063]
[1744601298055,11.67681147,132.49,132.44,11.67681147]
[1744601298365,11.67681147,132.49,132.44,17.71721147]
[1744601298550,11.67681147,132.5,132.45,11.67681147]
[1744601298871,11.67681147,132.49,132.44,17.71721147]
[1744601299365,6.3008,132.51,132.44,21.1415]
[1744601299558,17.97761147,132.51,132.46,11.67681147]
[1744601299763,17.97761147,132.51,132.45,11.67681147]
[1744601299962,24.01501147,132.51,132.45,11.67681147]
[1744601300165,11.67681147,132.48,132.43,6.1038]
[1744601300364,11.67681147,132.48,132.43,88.7038]
[1744601300563,0.28432314,132.48,132.43,100.38061147]
[1744601300765,11.96113461,132.48,132.43,100.38061147]
[1744601301578,11.96113461,132.48,132.43,88.7038]
[1744601301769,11.96113461,132.48,132.43,100.38061147]
[1744601302173,0.28432314,132.48,132.43,100.38061147]
[1744601303876,0.28432314,132.5,132.46,11.67681147]
[1744601304063,0.17216157,132.56,132.49,11.67681147]
[1744601304265,11.84897304,132.56,132.5,11.67681147]
[1744601304564,6.0656,132.55,132.5,11.67681147]
[1744601304770,17.74241147,132.55,132.5,17.71441147]
[1744601304969,0.28432314,132.54,132.5,17.71441147]
[1744601305165,36.39206033,132.55,132.5,17.71441147]
[1744601305361,19.07613357,132.54,132.48,17.71501147]
[1744601305671,0.28432314,132.52,132.48,6.0382]
[1744601306076,0.28432314,132.5,132.46,7.92]
[1744601306259,0.28432314,132.5,132.46,19.59681147]
[1744601306663,0.28432314,132.5,132.46,25.63621147]
[1744601309058,6.4562,132.54,132.49,11.67681147]
[1744601309365,11.81897304,132.53,132.48,11.67681147]
[1744601309564,11.81897304,132.53,132.47,11.67681147]
[1744601309878,11.81897304,132.53,132.48,11.67681147]
[1744601310070,0.14216157,132.52,132.48,11.67681147]
[1744601311165,0.14216157,132.52,132.49,6.0381]
[1744601312481,0.14216157,132.52,132.48,6.0386]
[1744601312980,0.14216157,132.52,132.48,17.71541147]
[1744601313882,0.28432314,132.53,132.48,17.71541147]
[1744601314082,0.28432314,132.53,132.49,11.67681147]
[1744601315089,0.28432314,132.53,132.5,6.0377]
[1744601317990,11.67681147,132.52,132.47,6.0391]
[1744601318194,11.96113461,132.52,132.47,6.0391]
[1744601318495,11.67681147,132.53,132.48,11.67681147]
[1744601320300,11.67681147,132.53,132.49,6.0381]
[1744601321191,24.45323461,132.54,132.49,6.0381]
[1744601321396,0.28432314,132.53,132.49,6.0381]
[1744601322075,17.99743461,132.53,132.49,6.0381]
[1744601322795,11.96113461,132.53,132.49,6.0381]
[1744601323794,0.28432314,132.53,132.49,6.0381]
[1744601325802,17.99753461,132.53,132.48,6.0384]
[1744601326703,11.96113461,132.53,132.48,6.0384]
[1744601328401,18.13301147,132.54,132.48,17.71521147]
[1744601329200,6.4562,132.54,132.49,7.481725]
[1744601329812,0.03,132.55,132.5,13.519425]
[1744601330001,0.03,132.55,132.54,7.481725]
[1744601331186,0.03,132.55,132.54,37.67701214]
[1744601332119,0.03,132.55,132.54,43.71291214]
[1744601335192,0.03,132.55,132.54,126.31291214]
[1744601337129,0.03,132.56,132.54,126.31291214]
[1744601337313,0.0001,132.56,132.55,19.57701214]
[1744601339018,0.0001,132.56,132.55,25.61241214]
[1744601341212,0.0001,132.56,132.55,13.9354]
[1744601341418,0.0001,132.56,132.54,120.27701214]
[1744601341419,0.0001,132.56,132.54,6.0357]
[1744601341805,0.0001,132.56,132.55,11.67701214]
[1744601342616,0.0001,132.56,132.55,17.71241214]
[1744601346514,0.0001,132.56,132.55,6.0354]
[1744601346713,0.0001,132.56,132.54,88.6358]
[1744601346910,0.0001,132.56,132.54,6.0358]
[1744601349925,0.0001,132.56,132.53,6.0361]
[1744601350111,0.0001,132.56,132.51,6.0372]